bitfinex-derivatives/quotes_ETHF0:USTF0_20250106
["timestamp","ask_amount","ask_price","bid_price","bid_amount"]
[1736177186153,3.2078,3696.6,3696.5,0.27053]
[1736177186550,5.56829468,3696.6,3695.8,3.2078]
[1736177186756,3.2078,3696.6,3696.5,0.27053]
[1736177187046,3.2078,3696.6,3696.5,40.8]
[1736177187445,3.2078,3696.6,3696.5,41.07053]
[1736177188152,3.2078,3696.6,3696.5,0.27053]
[1736177188354,5.56829468,3696.6,3695.8,3.2078]
[1736177188547,3.2078,3696.2,3695.9,40.8]
[1736177188750,0.27054,3696.5,3696.2,0.27056]
[1736177188954,0.27054,3696.5,3695.9,40.8]
[1736177188955,0.27053,3696.5,3696.1,0.27056]
[1736177189145,0.27053,3696.5,3696.2,0.27056]
[1736177189350,5.56829468,3696.3,3694.7,9.32840053]
[1736177189553,0.27059,3695.9,3694.8,2.67675]
[1736177189851,0.27059,3695.9,3695.0,40.8]
[1736177189852,3.2078,3695.8,3695.0,40.8]
[1736177190051,3.47839,3695.8,3695.0,40.8]
[1736177190353,3.47839,3695.8,3695.1,0.27064]
[1736177190354,2.63108468,3695.7,3695.1,0.27064]
[1736177190546,2.63108468,3695.7,3695.1,0.27063]
[1736177190547,2.36049468,3695.7,3695.1,0.27063]
[1736177190750,2.36049468,3695.7,3695.0,40.8]
[1736177190947,0.27063,3695.3,3695.1,0.27063]
[1736177191255,3.2078,3695.4,3695.0,40.8]
[1736177191453,2.36049468,3695.1,3694.8,2.0001]
[1736177191755,2.36049468,3695.1,3694.7,4.06196107]
[1736177191756,0.27066,3694.8,3694.7,4.06196107]
[1736177191960,2.63115468,3694.8,3694.7,4.06196107]
[1736177192163,8.40209468,3694.8,3693.9,1.98796108]
[1736177192454,3.2078,3694.1,3693.9,1.98796108]
[1736177192658,4.4798,3694.1,3694.0,0.27072]
[1736177193365,4.4798,3694.1,3693.9,1.98796108]
[1736177193557,4.4798,3694.1,3693.5,40.8]
[1736177193859,3.2078,3693.8,3693.5,40.8]
[1736177194058,3.2078,3693.8,3693.6,0.27074]
[1736177194256,3.2078,3693.8,3693.5,40.8]
[1736177194257,2.78696354,3693.8,3693.5,40.8]
[1736177194453,3.47855,3693.6,3693.5,40.8]
[1736177194654,3.2078,3693.6,3693.5,40.8]
[1736177194854,3.2078,3693.6,3693.5,41.07075]
[1736177195362,3.2078,3694.0,3693.5,40.8]
[1736177195553,3.47852,3694.0,3693.6,0.27074]
[1736177195751,3.2078,3694.0,3693.5,40.8]
[1736177195951,3.2078,3694.0,3693.8,0.27073]
[1736177196160,3.2078,3694.0,3693.5,40.8]
[1736177196358,3.2078,3694.0,3693.8,0.27073]
[1736177196556,3.2078,3694.0,3693.5,40.8]
[1736177196759,3.47852,3694.0,3693.6,0.27075]
[1736177197058,0.27075,3693.7,3693.5,40.8]
[1736177197251,3.47855,3693.6,3693.5,40.8]
[1736177197561,3.2078,3693.6,3692.2,1.0008]
[1736177197757,2.78696354,3693.3,3692.2,1.0008]
[1736177198063,3.2078,3693.1,3692.7,0.27081]
[1736177198364,0.27079,3693.1,3692.6,0.27081]
[1736177198564,0.27078,3693.2,3692.8,0.27081]
[1736177198861,1.27,3693.0,3692.9,0.2708]
[1736177199065,1.27,3693.0,3692.3,40.8]
[1736177199255,1.27,3693.0,3692.9,0.2708]
[1736177199552,4.4778,3693.0,3692.3,40.8]
[1736177199756,1.27,3693.0,3692.9,0.2708]
[1736177200760,1.27,3693.0,3692.9,41.0708]
[1736177200970,4.4778,3693.0,3692.9,40.8]
[1736177201858,4.4778,3693.0,3692.9,41.0708]
[1736177202255,4.4778,3693.0,3692.9,40.8]
[1736177202758,0.27083,3692.5,3692.1,0.27085]
[1736177202958,5.99476354,3692.4,3692.1,0.27085]
[1736177203165,5.99476354,3692.4,3692.2,40.8]
[1736177203367,3.2078,3692.6,3692.2,40.8]
[1736177203665,2.78696354,3692.8,3692.7,0.27081]
[1736177203960,1.271,3692.8,3692.2,44.0078]
[1736177204164,4.4788,3693.0,3692.2,44.0078]
[1736177204460,4.4788,3693.0,3692.8,0.2708]
[1736177204665,4.4788,3693.0,3692.2,44.68492]
[1736177204865,4.4788,3693.0,3692.9,0.2708]
[1736177205264,1.271,3693.2,3692.6,3.2078]
[1736177205459,1.271,3693.2,3693.1,0.27078]
[1736177205655,4.73491354,3693.2,3691.7,3.88501]
[1736177205969,3.2078,3693.1,3691.8,0.6772]
[1736177206159,3.47858,3693.1,3692.8,0.2708]
[1736177206466,1.271,3693.0,3692.9,0.2708]
[1736177208069,0.27077,3693.3,3692.3,3.2078]
[1736177208266,1.271,3693.2,3692.4,0.6771]
[1736177208467,1.271,3693.2,3692.9,40.8]
[1736177208670,1.54178,3693.2,3692.9,41.07079]
[1736177209064,4.05796354,3693.2,3692.9,40.8]
[1736177209260,4.32874354,3693.2,3692.9,41.07079]
[1736177209465,4.05796354,3693.2,3692.9,40.8]
[1736177209665,1.271,3693.1,3693.0,0.27079]
[1736177210267,3.2078,3693.5,3692.9,40.8]
[1736177210469,3.2078,3693.5,3693.4,0.27076]
[1736177210773,3.2078,3693.5,3692.9,40.8]
[1736177210774,1.271,3693.7,3693.6,0.27075]
[1736177211069,3.2078,3694.0,3693.9,0.27073]
[1736177211572,1.271,3694.5,3694.4,0.27069]
[1736177211974,0.27069,3694.4,3694.1,0.2707]
[1736177212175,3.05765354,3694.4,3694.1,0.2707]
[1736177212368,2.78696354,3694.4,3694.2,41.0707]
[1736177212666,2.78696354,3694.4,3694.2,40.8]
[1736177212667,0.2707,3694.3,3694.2,40.8]
[1736177212971,3.4785,3694.3,3694.2,40.8]
[1736177213465,3.2078,3694.3,3694.2,40.8]
[1736177213667,3.2078,3694.3,3694.2,41.0707]
[1736177214275,1.271,3694.6,3694.5,0.27068]
[1736177215170,1.271,3694.6,3694.2,40.8]
[1736177215171,3.2078,3694.8,3694.7,0.27067]
[1736177215379,7.26576354,3695.2,3695.1,0.27064]
[1736177215771,3.2078,3695.2,3695.1,0.27064]
[1736177216069,2.78696354,3695.6,3695.5,0.27061]
[1736177216070,5.99476354,3695.6,3695.5,0.27061]
[1736177216274,7.26576354,3695.6,3695.4,0.27061]
[1736177216973,7.26576354,3695.6,3694.9,1.8009]
[1736177216974,7.26576354,3695.6,3695.5,0.27061]
[1736177217269,0.27062,3695.4,3695.1,0.27063]
[1736177217474,0.27061,3695.5,3695.2,0.27063]
[1736177217870,0.27061,3695.5,3695.3,40.8]
[1736177218177,7.26576354,3695.6,3695.4,0.27061]
[1736177218370,7.26576354,3695.6,3695.3,40.8]
[1736177218576,7.26576354,3695.6,3695.5,0.27061]
[1736177218975,7.26576354,3695.6,3695.4,0.27061]
[1736177219173,7.26576354,3695.6,3695.3,40.8]
[1736177219174,7.53636354,3695.6,3695.3,41.07062]
[1736177219477,0.27065,3695.0,3694.4,0.27069]
[1736177219677,5.99476354,3695.0,3694.2,4.77486]
[1736177219872,0.27066,3694.9,3694.6,0.27067]
[1736177220180,5.99476354,3695.0,3694.2,4.77486]
[1736177220181,5.99476354,3695.0,3694.9,0.27065]
[1736177220375,3.2078,3695.0,3694.9,0.27065]
[1736177220977,5.99476354,3695.0,3694.2,0.8903]
[1736177221275,2.78696354,3694.6,3694.2,0.8903]
[1736177221481,3.2078,3694.4,3694.3,0.2707]
[1736177221778,3.47849,3694.4,3694.2,0.2707]
[1736177221979,3.2078,3694.4,3694.3,0.2707]
[1736177222280,0.2707,3694.3,3693.9,41.7288]
[1736177222479,3.2078,3694.4,3694.0,0.27072]
[1736177222677,3.2078,3694.4,3693.9,41.7288]
[1736177222893,3.47849,3694.4,3694.2,0.2707]
[1736177223179,0.2707,3694.3,3694.1,0.27071]
[1736177223374,3.2078,3694.4,3693.9,41.7288]
[1736177223576,3.47849,3694.4,3694.2,0.2707]
[1736177223781,0.2707,3694.3,3694.1,0.27071]
[1736177223979,3.2078,3694.4,3693.9,40.8]
[1736177224182,3.2078,3694.4,3694.3,0.2707]
[1736177224374,2.2,3694.5,3693.9,40.8]
[1736177224578,2.47068,3694.5,3694.4,0.27069]
[1736177224774,0.27069,3694.4,3694.2,0.2707]
[1736177225182,3.2078,3694.3,3694.2,0.2707]
[1736177225478,2.47068,3694.5,3694.0,0.27072]
[1736177225669,2.2,3694.5,3694.4,0.27069]
[1736177226279,2.47068,3694.5,3694.3,0.27069]
[1736177226480,0.27069,3694.4,3693.9,40.8]
[1736177226780,5.99476354,3694.3,3694.2,0.2707]
[1736177226979,3.2078,3694.3,3694.2,0.2707]
[1736177227383,0.93,3694.5,3694.4,0.27069]
[1736177227678,2.2,3694.5,3694.4,0.27069]
[1736177228874,0.93,3694.5,3694.4,0.27069]
[1736177229177,2.2,3694.5,3693.9,40.8]
[1736177229482,2.2,3694.5,3694.4,0.27069]
[1736177229778,2.2,3694.5,3693.9,40.8]
[1736177230080,3.2078,3694.2,3693.9,40.8]
[1736177230475,3.2078,3694.2,3694.1,0.27071]
[1736177231279,4.903,3694.9,3694.6,0.27067]
[1736177231478,1.27,3695.0,3694.9,0.27065]
[1736177231881,1.27,3695.0,3694.9,41.07065]
[1736177232185,4.4778,3695.0,3693.8,0.67684]
[1736177232486,3.2078,3694.4,3694.3,0.27069]
[1736177232778,3.2078,3694.4,3694.3,41.07069]
[1736177232978,6.8364388,3694.4,3694.3,41.07069]
[1736177233376,3.6286388,3694.4,3694.3,41.07069]
[1736177233978,3.6286388,3694.4,3694.3,0.27069]
[1736177234487,6.8364388,3694.4,3694.3,41.0707]
[1736177234784,6.8364388,3694.4,3694.3,0.2707]
[1736177235288,6.8364388,3694.4,3694.3,41.0707]
[1736177235484,3.2078,3694.8,3694.3,41.0707]
[1736177235785,3.2078,3694.8,3694.7,0.27067]
[1736177235977,1.27,3695.1,3694.7,0.27067]
[1736177236179,1.27,3695.1,3695.0,0.27064]
[1736177236385,3.6286388,3695.3,3695.2,0.27063]
[1736177236583,6.8364388,3695.3,3695.2,0.27063]
[1736177236988,0.27063,3695.2,3694.8,0.9198]
[1736177237286,7.26362965,3695.3,3694.5,0.8645]
[1736177237485,3.2078,3694.9,3694.8,0.27065]
[1736177238592,3.2078,3695.3,3695.2,0.27063]
[1736177239389,3.2078,3695.3,3695.2,41.07063]
[1736177240484,3.2078,3695.3,3695.2,40.8]
[1736177240790,3.2078,3695.3,3694.3,9.36739879]
[1736177240791,0.27065,3695.0,3694.8,0.27065]
[1736177240992,3.2078,3694.9,3694.8,0.27065]
[1736177241592,0.27067,3694.7,3694.6,0.27067]
[1736177241890,0.27066,3694.8,3694.6,0.27067]
[1736177242092,0.27067,3694.7,3694.6,0.27067]
[1736177242290,1.53967,3694.7,3694.6,40.8]
[1736177242497,1.269,3694.7,3694.6,41.07067]
[1736177243694,0.9286,3695.2,3694.6,40.8]
[1736177243894,1.269,3695.1,3694.7,0.67667]
[1736177244188,3.2078,3695.3,3695.2,0.27063]
[1736177244393,0.27061,3695.6,3695.4,0.27061]
[1736177244793,7.26262965,3695.7,3695.5,40.8]
[1736177244994,0.2706,3695.6,3695.5,41.0706]
[1736177245396,1.5396,3695.6,3695.5,40.8]
[1736177245891,1.269,3695.6,3695.5,41.07061]
[1736177246390,0.27063,3695.2,3695.1,0.9201]
[1736177246694,3.05645965,3695.3,3695.1,0.27063]
[1736177246899,0.27063,3695.2,3694.7,41.7201]
[1736177247089,2.78582965,3695.3,3695.2,0.27063]
[1736177247792,5.6179,3695.6,3694.9,0.67664]
[1736177247991,5.6179,3695.6,3694.7,41.7201]
[1736177248189,5.6179,3695.6,3695.5,0.27061]
[1736177248391,5.3473,3695.6,3695.5,0.27061]
[1736177248597,4.4768,3695.6,3695.5,0.27061]
[1736177249498,0.27061,3695.5,3695.3,0.27062]
[1736177249693,4.7474,3695.6,3694.9,0.67664]
[1736177249999,3.2078,3695.6,3694.9,0.67664]
[1736177250196,3.2078,3695.6,3695.5,0.27061]
[1736177250989,0.27061,3695.5,3695.3,0.27062]
[1736177251395,3.2078,3695.6,3695.1,0.27063]
[1736177251601,3.47843,3695.2,3695.0,0.27064]
[1736177251802,3.47843,3695.2,3695.1,0.27064]
[1736177251803,3.2078,3695.2,3695.1,0.27064]
[1736177252396,3.47843,3695.2,3695.1,0.27064]
[1736177252596,3.2078,3695.2,3695.1,0.27064]
[1736177253604,0.27064,3695.1,3695.0,0.27064]
[1736177253806,3.2078,3695.2,3694.7,0.9201]
[1736177253994,0.27067,3694.7,3694.6,0.27067]
[1736177254199,0.27067,3694.6,3694.5,41.93518]
[1736177254402,1.269,3694.7,3694.5,41.6645]
[1736177254601,1.53967,3694.7,3694.6,0.27067]
[1736177254901,1.53967,3694.7,3694.5,41.6645]
[1736177255101,1.53967,3694.7,3694.6,0.27067]
[1736177255302,1.53967,3694.7,3694.5,41.93518]
[1736177255604,0.27067,3694.6,3694.5,41.6645]
[1736177255804,0.27067,3694.6,3694.5,40.8]
[1736177255998,1.53867,3694.6,3694.5,40.8]
[1736177256898,1.268,3694.6,3694.5,40.8]
[1736177257199,1.53867,3694.6,3694.5,40.8]
[1736177257400,1.268,3694.6,3694.5,40.8]
[1736177257702,1.53867,3694.6,3694.5,40.8]
[1736177257896,1.268,3694.6,3694.5,40.8]
[1736177258101,1.268,3694.6,3694.5,41.07068]
[1736177258693,1.268,3694.6,3693.6,7.03719879]
[1736177258694,4.903,3694.3,3693.6,5.50666879]
[1736177258995,4.903,3693.6,3692.3,12.3191975]
[1736177259192,11.14125684,3693.7,3692.4,40.8]
[1736177259193,3.2078,3692.5,3692.4,40.8]
[1736177259395,4.4758,3692.5,3692.4,40.8]
[1736177259606,4.74663,3692.5,3692.4,40.8]
[1736177259802,6.83759754,3692.5,3692.4,40.8]
[1736177260002,7.10842754,3692.5,3692.4,40.8]
[1736177260906,6.83759754,3692.5,3692.4,40.8]
[1736177261108,7.10842754,3692.5,3692.4,40.8]
[1736177261402,6.83759754,3692.5,3692.4,40.8]
[1736177261606,7.10842754,3692.5,3692.4,40.8]
[1736177261797,7.10842754,3692.5,3691.9,0.8865]
[1736177261798,6.83759754,3692.5,3691.9,0.8865]
[1736177262000,2.36179754,3692.2,3692.1,0.27085]
[1736177262507,2.36179754,3692.2,3692.1,41.07085]
[1736177262703,2.36179754,3692.2,3692.1,0.27085]
[1736177263104,2.79048374,3692.2,3691.9,1.15736]
[1736177263303,2.79048374,3692.2,3692.0,41.07086]
[1736177263507,2.79048374,3692.2,3692.0,40.8]
[1736177264908,2.79048374,3692.2,3691.3,0.8819]
[1736177264909,0.27086,3692.1,3691.7,0.27088]
[1736177265099,5.99828374,3692.2,3691.3,0.8819]
[1736177265405,0.27086,3692.1,3691.7,0.27089]
[1736177266308,6.26913374,3692.2,3691.8,0.27088]
[1736177266710,5.99828374,3692.2,3691.9,0.27087]
[1736177266905,5.99828374,3692.2,3691.4,40.8]
[1736177267205,5.99828374,3692.2,3692.1,0.27086]
[1736177267406,7.26728374,3692.2,3692.1,0.27086]
[1736177267608,7.26728374,3692.2,3691.4,3.2078]
[1736177267803,7.26728374,3692.2,3692.1,40.8]
[1736177268204,7.26728374,3692.2,3692.1,41.07086]
[1736177268903,7.26728374,3692.2,3692.1,40.8]
[1736177269103,7.26728374,3692.2,3692.1,41.07086]
[1736177269297,7.26728374,3692.2,3692.1,40.8]
[1736177269704,4.4768,3692.2,3692.1,40.8]
[1736177270003,4.4768,3692.2,3692.1,41.07086]
[1736177271112,3.2078,3692.2,3692.1,40.8]
[1736177271303,2.79048374,3692.6,3692.1,40.8]
[1736177271304,5.99828374,3692.6,3692.1,40.8]
[1736177271505,1.269,3692.7,3692.1,40.8]
[1736177271709,1.269,3692.7,3692.6,0.27082]
[1736177272108,1.269,3692.7,3692.2,2.5574]
[1736177272308,1.269,3692.7,3692.6,0.27082]
[1736177272705,1.269,3692.7,3692.5,0.27082]
[1736177272906,5.99828374,3692.6,3692.5,0.27082]
[1736177273608,7.26728374,3692.6,3692.5,0.27082]
[1736177273913,4.4768,3692.6,3692.5,0.27082]
[1736177274110,5.99828374,3693.0,3691.8,3.885]
[1736177274314,5.99828374,3693.0,3692.2,0.8855]
[1736177274315,1.269,3692.6,3692.2,0.8855]
[1736177274506,1.269,3692.6,3692.5,0.27083]
[1736177274705,1.269,3692.6,3692.5,41.07083]
[1736177275106,0.2708,3692.9,3692.6,0.27082]
[1736177275419,1.53981,3692.8,3692.5,41.07082]
[1736177275713,1.269,3692.8,3692.5,41.07082]
[1736177276006,1.53981,3692.8,3692.5,40.8]
[1736177276413,1.269,3692.8,3692.6,0.27082]
[1736177276610,1.269,3692.8,3692.5,41.07082]
[1736177277113,1.269,3692.8,3692.5,40.8]
[1736177277310,1.269,3692.8,3692.7,0.27081]
[1736177277712,4.4768,3693.0,3692.9,0.2708]
[1736177278216,3.2078,3693.5,3692.6,6.86518374]
[1736177278407,1.269,3693.4,3693.3,0.27077]
[1736177278718,3.2078,3693.5,3693.4,0.27076]
[1736177278911,4.4768,3693.5,3693.4,0.27076]
[1736177279112,4.74756,3693.5,3693.2,0.27077]
[1736177279513,4.4768,3693.5,3693.0,0.8878]
[1736177279813,4.4768,3693.5,3693.4,0.27076]
[1736177280205,3.2078,3693.9,3693.0,1.56478]
[1736177280411,3.2078,3693.9,3693.2,0.67695]
[1736177280707,1.269,3693.8,3693.7,0.27074]
[1736177281716,1.269,3693.8,3693.3,0.8669]
[1736177282017,0.27077,3693.3,3693.0,1.15859]
[1736177282220,0.27077,3693.3,3693.1,0.27078]
[1736177282413,3.2078,3693.4,3693.3,0.27077]
[1736177282614,0.27077,3693.3,3693.1,0.27078]
[1736177282911,3.47857,3693.4,3693.1,0.27078]
[1736177283214,0.27076,3693.5,3693.2,0.27077]
[1736177283612,0.27076,3693.4,3693.2,0.27077]
[1736177283811,0.8613,3693.7,3693.0,41.6878]
[1736177284014,3.2078,3693.4,3693.0,41.6878]
[1736177284220,5.99828374,3693.4,3692.2,3.2078]
[1736177284411,3.47862,3692.7,3692.1,0.67714]
[1736177284611,1.269,3692.6,3692.5,0.27082]
[1736177285008,1.269,3692.6,3691.9,2.6677]
[1736177285009,0.27083,3692.5,3692.2,0.27085]
[1736177285312,1.269,3692.6,3691.8,44.0078]
[1736177285313,0.27086,3692.0,3691.8,40.8]
[1736177285619,0.27086,3692.1,3691.9,0.27087]
[1736177285917,0.27086,3692.1,3691.8,41.07087]
[1736177286116,3.2078,3692.3,3692.2,0.27085]
[1736177286418,1.269,3692.6,3691.8,40.8]
[1736177286419,1.53982,3692.6,3692.3,0.27084]
[1736177286619,1.53982,3692.6,3691.8,40.8]
[1736177286620,1.269,3692.6,3691.8,40.8]
[1736177286822,3.47865,3692.3,3692.0,0.27086]
[1736177287118,0.27085,3692.2,3691.8,40.8]
[1736177287313,0.27085,3692.2,3691.9,0.27087]
[1736177287513,5.99828374,3692.3,3691.8,40.8]
[1736177287716,0.8575,3692.1,3691.9,0.27087]
[1736177288523,0.8575,3692.1,3691.8,40.8]
[1736177288715,0.8575,3692.1,3692.0,0.27086]
[1736177288908,0.8575,3692.1,3691.8,40.8]
[1736177289213,3.2078,3692.7,3692.6,0.27082]
[1736177289815,1.5388,3692.9,3692.1,5.0362]
[1736177289816,1.268,3692.9,3692.1,5.0362]
[1736177290122,1.268,3692.9,3692.8,0.27081]
[1736177290614,1.268,3693.4,3692.6,2.79048374]
[1736177290820,1.268,3693.4,3693.3,0.27077]
[1736177291923,4.4758,3693.7,3693.6,0.27075]
[1736177292620,0.27077,3693.3,3693.1,1.8151]
[1736177292821,5.99828374,3693.3,3692.5,0.67706]
[1736177293022,6.26905374,3693.3,3693.0,0.27079]
[1736177293422,0.27078,3693.2,3693.0,0.27079]
[1736177293718,6.26905374,3693.3,3693.0,0.27079]
[1736177293915,6.26905374,3693.3,3692.9,0.2708]
[1736177294218,5.99828374,3693.3,3692.6,0.8888]
[1736177294621,3.2078,3693.3,3692.6,1.56584]
[1736177294915,3.2078,3693.3,3693.2,0.27078]
[1736177295120,3.2078,3693.3,3692.7,0.8617]
[1736177295518,3.2078,3693.3,3693.1,0.27078]
[1736177296220,3.2078,3693.3,3692.7,0.8617]
[1736177296221,5.99828374,3693.3,3692.7,0.8617]
[1736177296519,3.2078,3693.3,3692.9,0.2708]
[1736177296715,3.2078,3693.3,3693.1,0.27078]
[1736177297116,3.2078,3693.3,3693.2,0.27078]
[1736177297520,3.47857,3693.3,3693.1,0.27078]
[1736177297719,3.47857,3693.3,3693.0,0.27079]
[1736177297915,3.47857,3693.3,3693.1,0.27078]
[1736177298923,0.27078,3693.2,3693.0,0.27079]
[1736177299317,3.2078,3693.3,3693.0,0.27079]
[1736177299521,3.47857,3693.3,3693.1,0.27078]
[1736177299920,3.47857,3693.3,3692.7,0.8617]
[1736177299921,1.7621,3693.6,3693.2,0.27078]
[1736177300124,4.4758,3693.8,3693.7,0.27074]
[1736177300327,2.37861511,3694.0,3693.3,0.67691]
[1736177300624,1.268,3693.9,3693.7,0.27073]
[1736177300831,1.53873,3693.9,3693.7,0.27073]
[1736177301028,0.27075,3693.6,3693.4,0.8752]
[1736177301226,2.79048374,3693.6,3692.9,0.8796]
[1736177301524,0.27077,3693.4,3693.2,0.27078]
[1736177301717,0.27077,3693.4,3693.3,0.27077]
[1736177301921,0.27077,3693.4,3693.2,0.27077]
[1736177302328,0.8622,3693.5,3693.0,40.8]
[1736177302532,3.47857,3693.4,3693.1,0.27078]
[1736177303334,0.27078,3693.3,3693.1,0.27078]
[1736177303632,3.2078,3693.4,3693.0,40.8]
[1736177303826,0.27077,3693.3,3693.1,0.27078]
[1736177304333,1.268,3693.3,3693.0,40.8]
[1736177304531,1.268,3693.3,3693.2,0.27078]
[1736177307739,1.53877,3693.3,3693.2,0.27078]
[1736177308330,1.268,3693.3,3693.2,0.27078]
[1736177308739,1.268,3693.3,3693.0,40.8]
[1736177309031,1.268,3693.3,3693.2,0.27078]
[1736177309238,1.53877,3693.3,3693.2,0.27078]
[1736177309838,1.268,3693.3,3693.2,0.27078]
[1736177314643,2.10789511,3694.0,3693.9,0.27073]
[1736177315238,2.10789511,3694.0,3693.9,41.07073]
[1736177315644,2.10789511,3694.2,3694.1,0.27071]
[1736177317042,0.27068,3694.5,3694.4,0.27069]
[1736177317246,0.27068,3694.7,3694.6,0.27067]
[1736177318847,4.4738,3694.8,3694.2,0.9147]
[1736177319143,0.27071,3694.1,3693.8,0.27073]
[1736177319450,5.56725172,3694.3,3693.5,0.8383]
[1736177319643,0.9272,3694.2,3694.1,0.27071]
[1736177322454,3.2078,3694.3,3694.2,0.2707]
[1736177324148,4.74449,3694.4,3694.3,0.2707]
[1736177324355,4.74449,3694.4,3693.9,0.67681]
[1736177324647,4.74449,3694.4,3694.3,0.2707]
[1736177325151,4.4738,3694.4,3694.3,0.2707]
[1736177325346,4.74449,3694.4,3694.3,0.2707]
[1736177325548,4.4738,3694.4,3694.3,0.2707]
[1736177325857,4.74449,3694.4,3694.3,0.2707]
[1736177326354,4.4738,3694.4,3694.3,0.2707]
[1736177326550,0.8611,3694.8,3694.0,40.8]
[1736177326753,2.1271,3694.8,3694.7,0.27067]
[1736177326946,5.31569511,3694.9,3694.1,6.41865172]
[1736177326947,2.10789511,3694.9,3694.1,6.41865172]
[1736177327254,2.10789511,3694.9,3694.8,0.27066]
[1736177327446,2.35945172,3694.9,3694.8,0.27066]
[1736177327846,1.266,3695.0,3694.9,0.27065]
[1736177328452,2.95939511,3695.3,3694.5,0.67671]
[1736177328649,1.266,3695.2,3695.1,0.27064]
[1736177329053,1.12213,3695.3,3694.7,0.67667]
[1736177329260,0.8515,3695.3,3695.2,0.27063]
[1736177329555,2.1175,3695.3,3695.2,0.27063]
[1736177329753,1.266,3695.3,3694.7,0.67667]
[1736177329953,1.266,3695.3,3695.2,0.27063]
[1736177330155,1.266,3695.3,3695.2,41.07063]
[1736177330659,1.53662,3695.3,3695.2,40.8]
[1736177331758,1.53662,3695.3,3695.1,0.27064]
[1736177332055,3.2078,3695.2,3695.1,41.07064]
[1736177332358,5.56725172,3695.2,3695.1,41.07064]
[1736177332756,5.56725172,3695.2,3695.1,0.27064]
[1736177333360,3.2078,3695.2,3695.1,0.27064]
[1736177334260,1.266,3695.3,3695.2,0.27063]
[1736177335360,3.2078,3695.6,3695.5,0.27061]
[1736177337057,3.2078,3695.6,3695.2,0.8604]
[1736177337058,3.2078,3695.6,3694.9,0.8705]
[1736177337251,3.2078,3695.6,3694.9,1.7309]
[1736177337460,3.2078,3695.6,3695.5,0.27061]
[1736177337756,3.2078,3695.6,3694.9,1.7309]
[1736177337961,3.4784,3695.6,3695.3,0.27062]
[1736177338458,3.4784,3695.6,3695.4,0.27062]
[1736177338661,3.4784,3695.6,3694.9,1.7309]
[1736177338861,0.27062,3695.4,3695.1,0.27063]
[1736177339255,0.27062,3695.4,3694.9,1.7309]
[1736177339651,3.2078,3695.2,3695.1,0.27063]
[1736177340068,3.2078,3695.2,3694.9,1.7309]
[1736177340255,0.9154,3695.1,3695.0,0.27064]
[1736177340659,0.9154,3695.1,3694.4,0.8791]
[1736177340954,0.9154,3695.1,3695.0,0.27064]
[1736177341154,3.2078,3695.2,3695.1,0.27064]
[1736177341362,4.053,3695.6,3695.5,0.27061]
[1736177341668,5.319,3695.6,3695.4,0.27061]
[1736177341857,5.319,3695.6,3695.5,0.27061]
[1736177342251,4.4738,3695.6,3695.5,0.27061]
[1736177343464,3.2078,3695.6,3695.5,0.27061]
[1736177344059,1.7436,3696.1,3695.5,0.27061]
[1736177344359,1.266,3696.0,3695.9,0.27058]
[1736177344759,1.266,3696.0,3695.9,41.07058]
[1736177345261,1.7436,3696.1,3695.9,40.8]
[1736177345461,3.0096,3696.1,3696.0,0.27057]
[1736177345654,2.1328,3696.1,3696.0,0.27057]
[1736177347358,3.2078,3696.2,3696.1,0.27056]
[1736177352972,1.264,3697.0,3696.0,1.7862]
[1736177353166,4.0838,3697.1,3697.0,0.2705]
[1736177353661,4.0838,3697.1,3697.0,41.0705]
[1736177353868,0.876,3697.1,3697.0,41.0705]
[1736177354762,0.876,3697.1,3697.0,0.2705]
[1736177355368,0.876,3697.1,3697.0,41.0705]
[1736177356469,4.0838,3697.1,3697.0,41.0705]
[1736177356764,3.2078,3697.1,3697.0,0.2705]
[1736177356959,4.31574,3699.2,3697.0,0.2705]
[1736177356960,3.2078,3698.0,3697.9,0.27043]
[1736177357361,3.2078,3698.0,3697.9,41.07043]
[1736177357560,3.2078,3698.0,3697.5,0.8261]
[1736177357765,3.2078,3698.0,3697.9,0.27043]
[1736177358267,3.2078,3698.0,3697.1,0.8896]
[1736177358571,3.2078,3697.6,3697.5,0.27046]
[1736177359671,4.4718,3697.6,3697.5,0.27046]
[1736177361266,4.4708,3697.6,3697.5,0.27046]
[1736177362267,4.4708,3697.6,3697.5,41.07046]
[1736177362669,3.2078,3697.6,3697.5,41.07046]
[1736177363362,1.263,3697.7,3697.6,0.27045]
[1736177364068,4.0703,3697.8,3697.7,0.27045]
[1736177365167,3.2078,3697.8,3697.7,0.27045]
[1736177365569,3.2078,3698.2,3697.6,0.8747]
[1736177365874,3.2078,3698.2,3698.1,0.27042]
[1736177369068,3.2078,3698.2,3697.8,0.7963]
[1736177369266,3.2078,3698.2,3697.7,0.845]
[1736177369267,0.27042,3698.1,3697.7,0.27044]
[1736177369574,1.263,3698.0,3697.9,0.27043]
[1736177370668,1.263,3698.0,3697.4,40.8]
[1736177370869,0.27044,3697.9,3697.6,0.27045]
[1736177371174,0.27046,3697.5,3697.4,41.07047]
[1736177371365,0.27046,3697.6,3697.4,41.07047]
[1736177371567,2.0112,3698.0,3697.4,40.8]
[1736177371979,2.0112,3698.0,3697.4,41.07046]
[1736177372178,0.27046,3697.6,3697.5,0.27046]